[Event "WYCC U14 Open 2019"]
[Site "Mumbai"]
[Date "2019.10.09"]
[Round "8.16"]
[White "Pham, Khoi"]
[Black "Davtyan, Arsen"]
[Result "0-1"]
[ECO "E71"]
[WhiteElo "2121"]
[BlackElo "1942"]
[Annotator "ChessBase"]
[PlyCount "89"]
[EventDate "2019.10.02"]
[EventType "swiss"]
[EventCountry "IND"]
[SourceTitle "playchess.com"]
[Source "ChessBase"]
[SourceQuality "1"]
[TimeControl "40/5400+30:1800+30"]

1. d4 {[%emt 0:00:00]} Nf6 {[%emt 0:00:00]} 2. c4 {[%emt 0:00:00]} g6 {[%emt 0:00:00]} 3. Nc3 {[%emt 0:00:00]} Bg7 {[%emt 0:00:04]} 4. e4 {[%emt 0:00:00]} d6 {[%emt 0:00:06]} 5. h3 {[%emt 0:00:11]} O-O {[%emt 0:00:14]} 6. Be3 {[%emt 0:00:05]} c5 {[%emt 0:00:10]} 7. Nf3 {[%emt 0:00:16]} cxd4 {[%emt 0:00:33]} 8. Nxd4 {[%emt 0:00:14]} b6 {[%emt 0:00:06]} 9. Be2 {[%emt 0:09:57]} Bb7 {[%emt 0:01:11]} 10. Qc2 {[%emt 0:01:24]} Nbd7 {[%emt 0:02:08]} 11. O-O {[%emt 0:01:54]} Rc8 {[%emt 0:02:31]} 12. Rac1 {[%emt 0:16:10]} Qc7 {[%emt 0:09:28]} 13. Qb1 {[%emt 0:05:31]} Qb8 {[%emt 0:06:07]} 14. Rfd1 {[%emt 0:03:30]} Qa8 {[%emt 0:08:04]} 15. f3 {[%emt 0:02:25]} Rfe8 {[%emt 0:26:05]} 16. b4 {[%emt 0:07:35]} Qb8 {[%emt 0:11:30]} 17. Qb3 {[%emt 0:25:14]} a6 {[%emt 0:10:05]} 18. Na4 {[%emt 0:09:55]} e6 {[%emt 0:05:10]} 19. c5 {[%emt 0:02:41]} dxc5 {[%emt 0:08:03]} 20. bxc5 {[%emt 0:00:06]} Nxc5 {[%emt 0:01:19]} 21. Nxc5 {[%emt 0:00:34]} bxc5 {[%emt 0:00:13]} 22. Nc2 {[%emt 0:00:24]} Rc6 {[%emt 0:02:10]} 23. Rb1 {[%emt 0:02:02]} Re7 {[%emt 0:01:52]} 24. Na3 {[%emt 0:00:51]} Nh5 {[%emt 0:02:03]} 25. Nc4 {[%emt 0:03:21]} Bd4 {[%emt 0:01:19]} 26. Bxd4 {[%emt 0:01:06]} cxd4 {[%emt 0:00:01]} 27. Rxd4 {[%emt 0:01:39]} Qg3 {[%emt 0:01:32]} 28. Bf1 Nf4 {[%emt 0:01:02]} 29. Kh1 {[%emt 0:02:47]} Kg7 {[%emt 0:00:47]} 30. Rd8 {[%emt 0:03:25]} e5 {[%emt 0:00:29]} 31. Qb4 {[%emt 0:00:45]} Rce6 {[%emt 0:00:35]} 32. Qe1 {[%emt 0:00:35]} Qg5 {[%emt 0:00:27]} 33. Na5 {[%emt 0:00:55]} Nh5 {[%emt 0:00:34]} 34. Nxb7 {[%emt 0:00:26]} Rxb7 {[%emt 0:00:17]} 35. Rxb7 {[%emt 0:00:25]} Qxd8 {[%emt 0:00:02]} 36. Bc4 {[%emt 0:00:41]} Rf6 {[%emt 0:00:46]} 37. Bd5 {[%emt 0:00:41]} Nf4 {[%emt 0:00:47]} 38. Bb3 {[%emt 0:00:37]} Qc8 {[%emt 0:00:36]} 39. Re7 {[%emt 0:00:32]} Nxh3 {[%emt 0:00:30]} 40. Qg3 {[%emt 0:00:34]} Nf4 {[%emt 0:00:30]} 41. Kh2 {[%emt 0:11:57]} Qc5 {[%emt 0:03:50]} 42. Rd7 {[%emt 0:01:20]} Ne2 {[%emt 0:03:08]} 43. Qe1 {[%emt 0:01:20]} Qe3 {[%emt 0:00:17]} 44. g3 {[%emt 0:05:51]} Rxf3 {[%emt 0:00:12]} 45. Re7 0-1

[Event "WYCC U14 Open 2019"]
[Site "Mumbai"]
[Date "2019.10.10"]
[Round "9.1"]
[White "Abinandhan R"]
[Black "Suleymanli, Aydin"]
[Result "0-1"]
[ECO "C18"]
[WhiteElo "1830"]
[BlackElo "2426"]
[Annotator "ChessBase"]
[PlyCount "80"]
[EventDate "2019.10.02"]
[EventType "swiss"]
[EventCountry "IND"]
[SourceTitle "playchess.com"]
[Source "ChessBase"]
[SourceQuality "1"]
[TimeControl "40/5400+30:1800+30"]

1. e4 {[%emt 0:00:00]} e6 {[%emt 0:00:00]} 2. d4 {[%emt 0:00:00]} d5 {[%emt 0:00:00]} 3. Nc3 {[%emt 0:00:00]} Bb4 {[%emt 0:00:00]} 4. e5 {[%emt 0:00:00]} c5 {[%emt 0:00:00]} 5. a3 {[%emt 0:00:07]} Bxc3+ {[%emt 0:00:00]} 6. bxc3 {[%emt 0:00:08]} Qa5 {[%emt 0:00:00]} 7. Bd2 {[%emt 0:12:42]} Qa4 {[%emt 0:00:00]} 8. Nf3 {[%emt 0:00:07]} Nc6 {[%emt 0:00:49]} 9. Be3 {[%emt 0:01:58]} c4 {[%emt 0:01:41]} 10. Be2 {[%emt 0:00:56]} Bd7 {[%emt 0:00:19]} 11. O-O {[%emt 0:00:59]} O-O-O {[%emt 0:00:15]} 12. Ne1 {[%emt 0:04:09]} f6 {[%emt 0:05:25]} 13. f4 {[%emt 0:00:39]} Nge7 {[%emt 0:00:20]} 14. Bf2 {[%emt 0:02:54]} Rdf8 {[%emt 0:01:10]} 15. Nf3 {[%emt 0:03:33]} Be8 {[%emt 0:02:26]} 16. Qd2 {[%emt 0:05:16]} Bg6 {[%emt 0:00:44]} 17. Bd1 {[%emt 0:00:19]} Be4 {[%emt 0:00:44]} 18. Ne1 {[%emt 0:07:52]} h6 {[%emt 0:06:08]} 19. Bf3 {[%emt 0:04:16]} Rf7 {[%emt 0:27:07]} 20. exf6 {[%emt 0:12:42]} gxf6 {[%emt 0:03:41]} 21. Bxe4 {[%emt 0:03:15]} dxe4 {[%emt 0:00:10]} 22. g3 {[%emt 0:00:05]} f5 {[%emt 0:00:41]} 23. Ng2 {[%emt 0:00:35]} Nd5 {[%emt 0:00:02]} 24. Be1 {[%emt 0:00:38]} h5 {[%emt 0:00:25]} 25. Qe2 {[%emt 0:01:33]} Nce7 {[%emt 0:01:31]} 26. Ra2 {[%emt 0:06:01]} Rg7 {[%emt 0:04:01]} 27. Kh1 {[%emt 0:01:17]} Ng8 {[%emt 0:01:18]} 28. Ne3 {[%emt 0:08:24]} Nxe3 {[%emt 0:00:16]} 29. Qxe3 {[%emt 0:00:05]} Nf6 {[%emt 0:00:14]} 30. h4 {[%emt 0:01:03]} Nd5 {[%emt 0:00:16]} 31. Qd2 {[%emt 0:03:47]} Rhg8 {[%emt 0:00:31]} 32. Kh2 {[%emt 0:03:47]} Rg4 {[%emt 0:01:48]} 33. Ra1 {[%emt 0:05:53]} Kb8 {[%emt 0:00:52]} 34. Qe2 {[%emt 0:00:43]} Qc6 {[%emt 0:00:34]} 35. Rb1 {[%emt 0:00:30]} a6 {[%emt 0:00:48]} 36. Qf2 {[%emt 0:04:11]} Rxg3 {[%emt 0:03:55]} 37. Qxg3 {[%emt 0:01:55]} Rxg3 {[%emt 0:00:04]} 38. Kxg3 {[%emt 0:00:05]} Qa4 {[%emt 0:00:34]} 39. Rc1 {[%emt 0:04:32]} Qxa3 {[%emt 0:00:17]} 40. Bd2 {[%emt 0:00:04]} e3 {[%emt 0:00:15]} 0-1

[Event "WYCC U14 Open 2019"]
[Site "Mumbai"]
[Date "2019.10.10"]
[Round "9.2"]
[White "Sreeshwan Maralakshikari"]
[Black "Morgunov, Marc"]
[Result "0-1"]
[ECO "E61"]
[WhiteElo "2449"]
[BlackElo "2280"]
[Annotator "NA"]
[PlyCount "130"]
[EventDate "2019.10.02"]
[EventType "swiss"]
[EventCountry "IND"]
[SourceTitle "playchess.com"]
[Source "ChessBase"]
[SourceQuality "1"]
[TimeControl "40/5400+30:1800+30"]

1. d4 {[%emt 0:00:00]} Nf6 {[%emt 0:00:00]} 2. c4 {[%emt 0:00:00]} g6 {[%emt 0:00:00]} 3. Nc3 {[%emt 0:00:00]} Bg7 {[%emt 0:00:00]} 4. Nf3 {[%emt 0:00:00]} d6 {[%emt 0:00:03]} 5. e4 {[%emt 0:00:00]} O-O {[%emt 0:00:09]} 6. h3 {[%emt 0:00:00]} e5 {[%emt 0:00:11]} 7. d5 {[%emt 0:00:04]} Nh5 {[%emt 0:00:05]} 8. g3 {[%emt 0:00:03] E90: King's Indian: Classical: Early deviations and 6 h3} f5 {[%emt 0:00:23]} (8... Na6 9. Nh2 Nc5 10. Be3 a5 11. Be2 Nf6 12. Bf3 Ne8 13. g4 f5 14. gxf5 gxf5 15. exf5 Bxf5 16. Bxc5 dxc5 {½-½ (79) Postny,E (2623)-Guseinov,G (2664) chess.com INT 2019}) 9. exf5 {[%emt 0:00:05]} gxf5 {[%emt 0:00:05]} 10. Nh4 {[%emt 0:00:07]} Nf6 {[%emt 0:00:35]} 11. Bd3 {[%emt 0:00:06]} e4 {[%emt 0:00:05]} 12. Be2 {[%emt 0:00:03]} Nfd7 {[%emt 0:00:23]} 13. Ng2 {[%emt 0:00:07]} Na6 {[%emt 0:01:05]} 14. Be3 {[%emt 0:00:05]} Bxc3+ {[%emt 0:00:24]} 15. bxc3 {[%emt 0:00:07]} Nac5 {[%emt 0:01:43]} 16. Nf4 {[%emt 0:00:10]} Ne5 {[%emt 0:01:29]} 17. Qd4 $146 {[%emt 0:21:41]} ({Predecessor:} 17. O-O Qe7 18. Kh1 b6 19. Rg1 h6 20. Qc2 {½-½ (20) Fenwick,J (2454)-Le Page,C (2436) ICCF email 2016}) 17... Qe7 {[%emt 0:11:04]} 18. O-O-O {[%emt 0:03:26]} b5 {[%emt 0:11:05]} 19. cxb5 {[%emt 0:00:05]} a6 {[%emt 0:00:36]} 20. b6 {[%emt 0:00:10]} Rb8 {[%emt 0:09:55]} 21. g4 {[%emt 0:36:05]} Rxb6 {[%emt 0:13:33]} 22. gxf5 {[%emt 0:03:12]} Bxf5 {[%emt 0:00:51]} 23. Rhg1+ {[%emt 0:00:08]} Kh8 {[%emt 0:01:28]} 24. h4 {[%emt 0:28:24]} Rfb8 {[%emt 0:24:18]} 25. Rg5 {[%emt 0:02:12]} Qf7 {[%emt 0:00:52]} 26. c4 {[%emt 0:01:19]} Ncd3+ {[%emt 0:02:05]} 27. Bxd3 {[%emt 0:00:54]} exd3 {[%emt 0:00:04]} 28. Nxd3 {[%emt 0:04:30]} Rb1+ {[%emt 0:02:42]} 29. Kd2 {[%emt 0:00:23]} Bxd3 {[%emt 0:03:59]} (29... Rxd1+ $17 30. Kxd1 Bxd3) 30. Rxb1 $11 {[%emt 0:00:06]} Rxb1 {[%emt 0:07:39]} 31. f4 {[%emt 0:00:28]} h6 {[%emt 0:00:26]} 32. Rg2 {[%emt 0:01:12]} Qf5 {[%emt 0:04:13]} 33. fxe5 {[%emt 0:00:40]} dxe5 {[%emt 0:00:05]} 34. Qc3 {[%emt 0:00:13]} Qe4 {[%emt 0:01:08]} 35. Rf2 {[%emt 0:00:46]} Bxc4 {[%emt 0:00:27]} 36. Qc2 {[%emt 0:00:30]} Qxd5+ {[%emt 0:01:25]} 37. Kc3 {[%emt 0:00:04]} Qa5+ {[%emt 0:00:29]} 38. Kxc4 {[%emt 0:00:05]} Rb4+ {[%emt 0:00:06]} 39. Kd3 {[%emt 0:00:49]} Qb5+ {[%emt 0:00:06]} 40. Kd2 {[%emt 0:00:04]} Rb2 {[%emt 0:00:10]} 41. Rf6 {[%emt 0:30:29]} Qd5+ {[%emt 0:33:02]} 42. Kc1 {[%emt 0:00:09]} Rxc2+ {[%emt 0:00:04]} 43. Kxc2 {[%emt 0:00:03]} Qxa2+ {[%emt 0:00:18]} 44. Kd3 {[%emt 0:00:06]} Kg7 {[%emt 0:00:19]} 45. Rxh6 {[%emt 0:00:04]} Qb3+ {[%emt 0:00:05]} 46. Ke4 {[%emt 0:00:03]} Qxe3+ {[%emt 0:00:12]} 47. Kxe3 {[%emt 0:00:03]} Kxh6 {[%emt 0:00:06]} 48. Ke4 {[%emt 0:00:04]} a5 {[%emt 0:00:30]} 49. Kxe5 {[%emt 0:00:03]} a4 {[%emt 0:00:06]} 50. Kd4 {[%emt 0:00:03]} c5+ {[%emt 0:00:06]} 51. Kc3 {[%emt 0:00:03]} Kh5 {[%emt 0:00:07]} 52. Kb2 {[%emt 0:00:03]} c4 {[%emt 0:00:05]} 53. Kb1 {[%emt 0:00:13]} Kxh4 {[%emt 0:00:30]} 54. Kb2 {[%emt 0:00:02]} Kg4 {[%emt 0:00:11]} 55. Kb1 {[%emt 0:00:09]} Kf4 {[%emt 0:00:08]} 56. Kb2 {[%emt 0:00:03]} Ke4 {[%emt 0:00:08]} 57. Kb1 {[%emt 0:00:03]} Kd3 {[%emt 0:00:15]} 58. Kb2 {[%emt 0:00:03]} c3+ {[%emt 0:00:09]} 59. Kb1 {[%emt 0:00:08]} a3 {[%emt 0:00:15]} 60. Ka2 {[%emt 0:00:07]} c2 {[%emt 0:00:07]} 61. Kxa3 {[%emt 0:00:03]} c1=Q+ {[%emt 0:00:07]} 62. Kb4 {[%emt 0:00:05]} Qc4+ {[%emt 0:00:08]} 63. Ka5 {[%emt 0:00:02]} Qc6 {[%emt 0:00:16]} 64. Kb4 {[%emt 0:00:02]} Qb6+ {[%emt 0:00:06]} 65. Ka4 {[%emt 0:00:03]} Kc4 {[%emt 0:00:06]} 0-1

[Event "WYCC U14 Open 2019"]
[Site "Mumbai"]
[Date "2019.10.10"]
[Round "9.3"]
[White "Vo, Pham Thien Phuc"]
[Black "Chyzy, Jakub"]
[Result "1-0"]
[ECO "A53"]
[WhiteElo "1807"]
[BlackElo "2327"]
[Annotator "NA"]
[PlyCount "114"]
[EventDate "2019.10.02"]
[EventType "swiss"]
[EventCountry "IND"]
[SourceTitle "playchess.com"]
[Source "ChessBase"]
[SourceQuality "1"]
[TimeControl "40/5400+30:1800+30"]

1. d4 {[%emt 0:00:00]} Nf6 {[%emt 0:00:00]} 2. c4 {[%emt 0:00:00]} d6 {[%emt 0:00:00]} 3. Nf3 {[%emt 0:00:00]} Nbd7 {[%emt 0:00:00]} 4. g3 {[%emt 0:00:03]} e5 {[%emt 0:00:00]} 5. Nc3 {[%emt 0:02:19]} Be7 {[%emt 0:00:19]} 6. Bg2 {[%emt 0:00:13]} O-O {[%emt 0:00:10]} 7. O-O {[%emt 0:00:05]} c6 {[%emt 0:00:21]} 8. e4 {[%emt 0:00:33]} a6 {[%emt 0:00:37]} 9. b3 {[%emt 0:01:46]} b5 {[%emt 0:01:13]} 10. Qc2 {[%emt 0:01:07]} Bb7 {[%emt 0:04:05]} 11. h3 {[%emt 0:05:11]} Re8 {[%emt 0:02:54]} 12. Be3 {[%emt 0:10:18]} Bf8 {[%emt 0:10:44]} 13. d5 {[%emt 0:03:22]} cxd5 {[%emt 0:03:08]} 14. cxd5 {[%emt 0:03:49]} Rc8 {[%emt 0:01:36]} 15. Qd3 {[%emt 0:01:39]} Nc5 {[%emt 0:05:12]} 16. Bxc5 {[%emt 0:00:07]} dxc5 {[%emt 0:07:59]} 17. Nd2 {[%emt 0:02:53]} Nd7 {[%emt 0:07:58]} 18. Rfc1 {[%emt 0:02:58]} Nb6 {[%emt 0:07:20]} 19. a4 {[%emt 0:02:34]} b4 {[%emt 0:01:30]} 20. Nd1 {[%emt 0:01:36]} a5 {[%emt 0:04:45]} 21. Ne3 {[%emt 0:02:40]} Ra8 {[%emt 0:06:40]} 22. Bf1 {[%emt 0:02:02]} g6 {[%emt 0:14:54]} 23. Ra2 {[%emt 0:01:13]} Qc7 {[%emt 0:03:53]} 24. h4 {[%emt 0:04:24]} Red8 {[%emt 0:06:15]} 25. Qc2 {[%emt 0:01:46]} Rac8 {[%emt 0:03:11]} 26. Bb5 {[%emt 0:01:18]} Bh6 {[%emt 0:01:48]} 27. Qd3 {[%emt 0:00:08]} Kh8 {[%emt 0:01:41]} 28. Rac2 {[%emt 0:00:39]} Qe7 {[%emt 0:00:24]} 29. Ba6 {[%emt 0:01:38]} Bxe3 {[%emt 0:04:32]} 30. fxe3 {[%emt 0:00:01]} f5 {[%emt 0:00:57]} 31. Bxb7 {[%emt 0:00:11]} Qxb7 {[%emt 0:00:07]} 32. Rxc5 {[%emt 0:01:38]} Rxc5 33. Rxc5 {[%emt 0:00:01]} fxe4 {[%emt 0:01:33]} 34. Qxe4 {[%emt 0:00:12]} Qe7 {[%emt 0:00:37]} 35. Rxa5 {[%emt 0:00:33]} Qc7 {[%emt 0:00:16]} 36. Kf2 {[%emt 0:03:26]} Nxd5 {[%emt 0:00:47]} 37. Nc4 {[%emt 0:01:59]} Kg8 {[%emt 0:00:27]} 38. Qxe5 {[%emt 0:02:28]} Qf7+ {[%emt 0:00:25]} 39. Kg2 {[%emt 0:01:12]} Nc3 {[%emt 0:00:37]} 40. Qf4 {[%emt 0:03:00]} Qd7 {[%emt 0:00:31]} 41. Qf3 {[%emt 0:35:00]} Qd3 {[%emt 0:30:22]} 42. Ra8 {[%emt 0:00:00]} Rxa8 {[%emt 0:00:15]} 43. Qxa8+ {[%emt 0:00:00]} Kg7 {[%emt 0:00:09]} 44. Qb7+ {[%emt 0:00:00]} Kh6 {[%emt 0:00:26]} 45. Qf3 {[%emt 0:00:00]} Kg7 {[%emt 0:01:20]} 46. Qf7+ {[%emt 0:00:00]} Kxf7 {[%emt 0:00:13]} 47. Ne5+ {[%emt 0:00:00]} Ke6 {[%emt 0:00:09]} 48. Nxd3 {[%emt 0:00:00]} Nd5 {[%emt 0:01:08]} 49. Kf3 {[%emt 0:00:00]} Kd6 {[%emt 0:00:26]} 50. e4 {[%emt 0:00:00]} Nc3 {[%emt 0:00:25]} 51. Nxb4 {[%emt 0:00:00]} Ke5 {[%emt 0:00:13]} 52. a5 {[%emt 0:00:00]} Nb5 {[%emt 0:00:48]} 53. a6 {[%emt 0:00:00]} Kd6 {[%emt 0:00:15]} 54. Kf4 {[%emt 0:00:00]} Kc7 {[%emt 0:00:18]} 55. Nd5+ {[%emt 0:00:00]} Kc6 {[%emt 0:01:02]} 56. Kg5 {[%emt 0:00:00]} Nd6 {[%emt 0:00:14]} 57. e5 {[%emt 0:00:00]} Kxd5 {[%emt 0:01:21]} 1-0

[Event "WYCC U14 Open 2019"]
[Site "Mumbai"]
[Date "2019.10.10"]
[Round "9.4"]
[White "Shah Jeet"]
[Black "Srihari L R"]
[Result "0-1"]
[ECO "B06"]
[WhiteElo "1844"]
[BlackElo "2283"]
[Annotator "NA"]
[PlyCount "114"]
[EventDate "2019.10.02"]
[EventType "swiss"]
[EventCountry "IND"]
[SourceTitle "playchess.com"]
[Source "ChessBase"]
[SourceQuality "1"]
[TimeControl "40/5400+30:1800+30"]

1. e4 {[%emt 0:00:00]} g6 {[%emt 0:00:00]} 2. d4 {[%emt 0:00:00]} Bg7 {[%emt 0:00:06]} 3. Nf3 {[%emt 0:00:54]} d6 {[%emt 0:00:07]} 4. Nc3 {[%emt 0:00:05]} a6 {[%emt 0:00:04]} 5. a4 {[%emt 0:00:07]} b6 {[%emt 0:00:05]} 6. Bc4 {[%emt 0:04:33]} e6 {[%emt 0:00:43]} 7. O-O {[%emt 0:03:17]} Bb7 {[%emt 0:02:44]} 8. Be3 {[%emt 0:06:20]} Nd7 {[%emt 0:00:45]} 9. h3 {[%emt 0:06:10]} Ne7 {[%emt 0:02:30]} 10. Nh2 {[%emt 0:15:13]} O-O {[%emt 0:06:17]} 11. Qd2 {[%emt 0:08:01]} d5 {[%emt 0:02:41]} 12. exd5 {[%emt 0:02:50]} exd5 {[%emt 0:01:22]} 13. Be2 {[%emt 0:01:48]} Nf5 {[%emt 0:02:44]} 14. Bf3 {[%emt 0:06:00]} Nxe3 {[%emt 0:06:36]} 15. Qxe3 {[%emt 0:05:28]} Nf6 {[%emt 0:02:15]} 16. Rfe1 {[%emt 0:01:40]} Re8 {[%emt 0:03:32]} 17. Qd3 {[%emt 0:01:47]} Qd6 {[%emt 0:00:32]} 18. Nf1 {[%emt 0:01:39]} Rxe1 {[%emt 0:06:28]} 19. Rxe1 {[%emt 0:00:29]} Qb4 {[%emt 0:00:04]} 20. Ne3 {[%emt 0:05:10]} Rd8 {[%emt 0:03:53]} 21. b3 {[%emt 0:06:50]} c5 {[%emt 0:05:27]} 22. dxc5 {[%emt 0:02:31]} Nd7 {[%emt 0:19:48]} 23. Nexd5 {[%emt 0:02:47]} Bxd5 {[%emt 0:03:19]} 24. Qxd5 {[%emt 0:01:03]} Bf6 {[%emt 0:00:16]} 25. Re3 {[%emt 0:15:58]} Nxc5 {[%emt 0:00:35]} 26. Na2 {[%emt 0:00:18]} Qa3 {[%emt 0:05:58]} 27. Qc6 {[%emt 0:00:23]} Kg7 {[%emt 0:00:33]} 28. b4 {[%emt 0:00:56]} Qxa2 {[%emt 0:04:51]} 29. bxc5 {[%emt 0:00:01]} bxc5 {[%emt 0:02:20]} 30. Qxc5 {[%emt 0:01:21]} Qb1+ {[%emt 0:02:42]} 31. Kh2 {[%emt 0:00:04]} Qb8+ {[%emt 0:00:10]} 32. g3 {[%emt 0:00:46]} Bd4 {[%emt 0:00:04]} 33. Qe7 {[%emt 0:00:37]} Bxe3 {[%emt 0:00:10]} 34. Qxe3 {[%emt 0:00:04]} Qc7 {[%emt 0:00:29]} 35. Be4 {[%emt 0:01:33]} Qe5 {[%emt 0:00:36]} 36. Bd3 {[%emt 0:00:44]} Qxe3 {[%emt 0:03:01]} 37. fxe3 {[%emt 0:00:01]} a5 {[%emt 0:00:08]} 38. Kg2 {[%emt 0:00:11]} Kf6 {[%emt 0:00:56]} 39. Kf3 {[%emt 0:00:04]} Ke5 {[%emt 0:00:07]} 40. Bb5 {[%emt 0:00:27]} Rd2 {[%emt 0:00:31]} 41. c4 {[%emt 0:30:04]} Rh2 {[%emt 0:31:26]} 42. h4 {[%emt 0:00:26]} f5 {[%emt 0:00:21]} 43. Be8 {[%emt 0:01:34]} Rc2 {[%emt 0:01:36]} 44. Bf7 {[%emt 0:00:21]} Rc3 {[%emt 0:01:04]} 45. Bd5 {[%emt 0:00:19]} Ra3 {[%emt 0:00:47]} 46. Bc6 {[%emt 0:00:04]} Kd6 {[%emt 0:00:08]} 47. Bb5 {[%emt 0:00:06]} Kc5 {[%emt 0:00:26]} 48. Kf4 {[%emt 0:00:25]} Rc3 {[%emt 0:00:24]} 49. Ba6 {[%emt 0:01:39]} Kb4 {[%emt 0:03:04]} 50. Bb5 {[%emt 0:00:03]} Ra3 {[%emt 0:00:06]} 51. Kf3 {[%emt 0:00:33]} Rxa4 {[%emt 0:00:32]} 52. Bxa4 Kxa4 {[%emt 0:00:04]} 53. e4 {[%emt 0:00:31]} Kb4 {[%emt 0:00:58]} 54. e5 {[%emt 0:00:25]} Kc5 {[%emt 0:00:09]} 55. Ke3 {[%emt 0:00:20]} h6 {[%emt 0:01:06]} 56. e6 {[%emt 0:00:45]} Kd6 {[%emt 0:00:03]} 57. Kd4 {[%emt 0:00:03]} a4 {[%emt 0:00:11]} 0-1

[Event "WYCC U14 Open 2019"]
[Site "Mumbai"]
[Date "2019.10.10"]
[Round "9.5"]
[White "Luczak, Filip"]
[Black "Murzin, Volodar"]
[Result "1/2-1/2"]
[ECO "E69"]
[WhiteElo "2136"]
[BlackElo "2433"]
[Annotator "NA"]
[PlyCount "123"]
[EventDate "2019.10.02"]
[EventType "swiss"]
[EventCountry "IND"]
[SourceTitle "playchess.com"]
[Source "ChessBase"]
[SourceQuality "1"]
[TimeControl "40/5400+30:1800+30"]

1. d4 {[%emt 0:00:00]} Nf6 {[%emt 0:00:00]} 2. c4 {[%emt 0:00:00]} g6 {[%emt 0:00:00]} 3. Nf3 {[%emt 0:00:00]} Bg7 {[%emt 0:00:06]} 4. g3 {[%emt 0:00:03]} O-O {[%emt 0:00:10]} 5. Bg2 {[%emt 0:00:05]} d6 {[%emt 0:00:21]} 6. O-O {[%emt 0:00:12]} Nbd7 {[%emt 0:00:04]} 7. Nc3 {[%emt 0:00:06]} e5 {[%emt 0:00:14]} 8. e4 {[%emt 0:00:09]} c6 {[%emt 0:01:16]} 9. h3 {[%emt 0:00:07]} Qb6 {[%emt 0:00:33]} 10. c5 {[%emt 0:00:06]} dxc5 {[%emt 0:00:09]} 11. dxe5 {[%emt 0:00:04]} Ne8 {[%emt 0:00:06]} 12. e6 {[%emt 0:00:18]} fxe6 {[%emt 0:00:02]} 13. Ng5 {[%emt 0:00:19]} Ne5 {[%emt 0:00:17]} 14. f4 {[%emt 0:00:20]} Nf7 {[%emt 0:08:20]} 15. Nxf7 {[%emt 0:00:40]} Bd4+ {[%emt 0:03:35]} 16. Kh2 {[%emt 0:00:07]} Rxf7 {[%emt 0:00:08]} 17. e5 {[%emt 0:00:32] [#]} Rd7 $146 {[%emt 0:02:30] E69: King's Indian: Fianchetto: 6...Nbd7 7 0-0 e5 8 e4 c6 9 h3} ({Predecessor:} 17... Qc7 18. Ne4 b6 19. Qc2 Ba6 20. Rd1 Rd8 21. a4 c4 22. Bf1 c5 23. Bxc4 Bxc4 24. Qxc4 Qc6 25. Qe2 {½-½ (96) Pantsulaia,L (2595)-Kotronias,V (2564) Warsaw 2013}) 18. Qg4 {[%emt 0:06:53]} Rf7 {[%emt 0:09:11]} 19. Ne4 {[%emt 0:04:45]} Qc7 {[%emt 0:00:47]} 20. Rb1 {[%emt 0:12:26]} b6 {[%emt 0:11:56]} 21. Rd1 {[%emt 0:08:05]} a5 {[%emt 0:04:25]} 22. Ng5 {[%emt 0:17:12]} Re7 {[%emt 0:02:05]} 23. Be4 {[%emt 0:04:04]} Rg7 {[%emt 0:10:48]} 24. h4 {[%emt 0:09:33]} Qe7 {[%emt 0:12:20]} 25. Bd2 {[%emt 0:07:24]} Nc7 {[%emt 0:07:32]} (25... Bd7 $16) 26. Bxc6 {[%emt 0:03:36]} Rb8 {[%emt 0:00:18]} 27. Bc3 {[%emt 0:00:57]} Ba6 {[%emt 0:03:22]} 28. Rd2 {[%emt 0:05:45]} h6 {[%emt 0:04:03]} 29. Ne4 {[%emt 0:05:20]} Bb5 {[%emt 0:06:10]} 30. Nf6+ {[%emt 0:02:10]} Kh8 {[%emt 0:00:49]} 31. Bg2 {[%emt 0:00:52]} Ne8 {[%emt 0:01:18]} 32. Bxd4 {[%emt 0:02:06]} cxd4 {[%emt 0:00:03]} 33. Nxe8 {[%emt 0:00:08]} Bxe8 {[%emt 0:00:11]} 34. Rxd4 {[%emt 0:02:54]} g5 {[%emt 0:00:23]} 35. fxg5 {[%emt 0:00:55]} hxg5 {[%emt 0:00:08] [#]} 36. Qf3 {[%emt 0:04:29]} (36. Rf1 $1 $18) 36... Bg6 {[%emt 0:06:12]} 37. Rf1 {[%emt 0:01:38]} Rf7 $18 {[%emt 0:03:25]} (37... Qc5 $16 38. Qe3 Rd7) 38. Qe3 {[%emt 0:01:21]} Rxf1 {[%emt 0:00:15]} 39. Bxf1 {[%emt 0:00:01]} Rf8 {[%emt 0:01:53]} 40. Bg2 {[%emt 0:00:14]} Qc5 {[%emt 0:01:20]} 41. Qxg5 {[%emt 0:32:43]} Qxd4 {[%emt 0:30:20]} 42. Qh6+ {[%emt 0:00:11]} Kg8 {[%emt 0:00:04]} 43. Qxg6+ {[%emt 0:00:03]} Kh8 {[%emt 0:00:06]} 44. Qh6+ {[%emt 0:00:07]} Kg8 {[%emt 0:00:11]} 45. Qxe6+ {[%emt 0:02:07]} Kg7 {[%emt 0:01:28]} 46. Qe7+ {[%emt 0:00:55]} Rf7 {[%emt 0:00:23]} 47. Qg5+ {[%emt 0:00:13]} Kf8 {[%emt 0:00:07]} 48. e6 {[%emt 0:00:00]} Rg7 {[%emt 0:00:00]} 49. Qd5 {[%emt 0:00:00]} Qxd5 {[%emt 0:00:00]} 50. Bxd5 {[%emt 0:00:00]} Rc7 {[%emt 0:00:00]} 51. h5 {[%emt 0:00:00]} Kg7 {[%emt 0:00:00]} 52. Kh3 {[%emt 0:00:00]} Kf6 {[%emt 0:00:00]} 53. g4 Rc5 {[%emt 0:00:00]} 54. Bb3 {[%emt 0:00:52]} Kg5 {[%emt 0:00:00]} 55. Kg3 {[%emt 0:01:54]} Re5 {[%emt 0:00:00]} 56. Kf3 {[%emt 0:01:13]} b5 {[%emt 0:00:00]} 57. a3 {[%emt 0:00:32]} Re1 {[%emt 0:00:00]} 58. Bd5 {[%emt 0:00:42]} Re5 {[%emt 0:00:00]} 59. Bb3 {[%emt 0:00:24]} Re1 {[%emt 0:00:00]} 60. Bd5 {[%emt 0:00:44]} Re5 {[%emt 0:00:00]} 61. Bb3 {[%emt 0:00:20]} Re1 {[%emt 0:00:00]} 62. Bd5 {[%emt 0:01:04]} 1/2-1/2

[Event "WYCC U14 Open 2019"]
[Site "Mumbai"]
[Date "2019.10.10"]
[Round "9.6"]
[White "Tsvetkov, Andrey"]
[Black "Samant Aditya S"]
[Result "1/2-1/2"]
[ECO "E11"]
[WhiteElo "2382"]
[BlackElo "2334"]
[Annotator "ChessBase"]
[PlyCount "67"]
[EventDate "2019.10.02"]
[EventType "swiss"]
[EventCountry "IND"]
[SourceTitle "playchess.com"]
[Source "ChessBase"]
[SourceQuality "1"]
[TimeControl "40/5400+30:1800+30"]

1. d4 {[%emt 0:00:00]} Nf6 {[%emt 0:00:00]} 2. c4 {[%emt 0:00:00]} e6 {[%emt 0:00:00]} 3. Nf3 {[%emt 0:00:00]} Bb4+ {[%emt 0:00:00]} 4. Nbd2 {[%emt 0:00:00]} b6 {[%emt 0:00:00]} 5. a3 {[%emt 0:00:00]} Bxd2+ {[%emt 0:00:00]} 6. Qxd2 {[%emt 0:00:00]} Bb7 {[%emt 0:00:40]} 7. e3 {[%emt 0:00:00]} O-O {[%emt 0:00:05]} 8. Be2 {[%emt 0:00:00]} d6 {[%emt 0:00:11]} 9. O-O {[%emt 0:01:32]} a5 {[%emt 0:05:03]} 10. b3 {[%emt 0:00:28]} Nbd7 {[%emt 0:00:21]} 11. Bb2 {[%emt 0:00:38]} Qe7 {[%emt 0:01:43]} 12. Rad1 {[%emt 0:11:56]} Rfd8 {[%emt 0:16:57]} 13. Qc3 {[%emt 0:18:32]} c5 {[%emt 0:11:12]} 14. d5 {[%emt 0:07:01]} exd5 {[%emt 0:02:39]} 15. cxd5 {[%emt 0:00:10]} Ba6 {[%emt 0:05:08]} 16. Bxa6 {[%emt 0:07:35]} Rxa6 {[%emt 0:00:15]} 17. a4 {[%emt 0:00:09]} Rb8 {[%emt 0:22:44]} 18. Rfe1 {[%emt 0:17:51]} b5 {[%emt 0:11:13]} 19. e4 {[%emt 0:00:30]} bxa4 {[%emt 0:01:04]} 20. bxa4 {[%emt 0:00:11]} Rab6 {[%emt 0:03:24]} 21. Ba1 Rb4 {[%emt 0:07:50]} 22. e5 {[%emt 0:04:18]} dxe5 {[%emt 0:00:24]} 23. d6 {[%emt 0:00:14]} Qe8 {[%emt 0:03:57]} 24. Nxe5 {[%emt 0:24:46]} Nxe5 {[%emt 0:00:07]} 25. Rxe5 {[%emt 0:00:12]} Qxa4 {[%emt 0:00:12]} 26. Ree1 {[%emt 0:00:03]} Rd4 {[%emt 0:03:27]} 27. Qf3 {[%emt 0:01:01]} Rxd1 {[%emt 0:00:33]} 28. Rxd1 {[%emt 0:00:01]} Qe4 {[%emt 0:03:47]} 29. Bxf6 {[%emt 0:03:42]} Qxf3 {[%emt 0:00:24]} 30. gxf3 {[%emt 0:00:02]} gxf6 {[%emt 0:00:10]} 31. Ra1 {[%emt 0:00:02]} Rd8 {[%emt 0:01:20]} 32. Rxa5 {[%emt 0:00:04]} c4 {[%emt 0:00:25]} 33. Rc5 {[%emt 0:00:05]} Rxd6 {[%emt 0:00:05]} 34. Rxc4 {[%emt 0:00:01]} 1/2-1/2